bitfinex-derivatives/quotes_SOLF0:USTF0_20241002
["timestamp","ask_amount","ask_price","bid_price","bid_amount"]
[1727884523309,16.27,147.17,147.14,3.3978]
[1727884524010,3.3975,147.16,147.13,3.398]
[1727884524405,16.27,147.17,147.11,0.12502]
[1727884524617,3.3978,147.15,147.12,3.3983]
[1727884525113,16.27,147.15,147.11,3.52352]
[1727884525509,16.27,147.15,147.11,0.12502]
[1727884525710,3.3981,147.14,147.11,3.52352]
[1727884525908,16.27,147.15,147.11,0.12502]
[1727884526103,16.27,147.14,147.11,0.12502]
[1727884526306,3.3984,147.12,147.11,0.12502]
[1727884526712,3.3983,147.13,147.11,0.12502]
[1727884527507,16.27,147.14,147.11,0.12502]
[1727884527711,3.3984,147.12,147.11,0.12502]
[1727884532816,19.6684,147.12,147.11,0.12502]
[1727884537220,3.3984,147.12,147.11,0.12502]
[1727884537719,16.27,147.16,147.12,3.3983]
[1727884537919,16.27,147.16,147.11,0.12502]
[1727884538115,7.3056,147.17,147.11,0.12502]
[1727884538612,3.3977,147.15,147.11,0.12502]
[1727884539332,7.3056,147.17,147.12,3.3983]
[1727884539621,3.398,147.14,147.12,3.3983]
[1727884540015,3.3978,147.15,147.12,3.3983]
[1727884542829,3.3978,147.15,147.11,0.12502]
[1727884543018,3.3976,147.16,147.13,3.398]
[1727884543226,1.3056,147.17,147.11,0.12502]
[1727884543421,3.3974,147.17,147.15,3.3976]
[1727884543626,16.27,147.19,147.11,6.12502]
[1727884543930,16.27,147.19,147.11,7.43222]
[1727884544122,3.3971,147.18,147.16,3.3974]
[1727884544723,3.3971,147.18,147.11,7.43222]
[1727884544923,3.3974,147.17,147.14,3.3978]
[1727884545128,3.3974,147.17,147.11,7.43222]
[1727884545332,3.3974,147.17,147.14,3.3978]
[1727884545527,3.38986012,147.18,147.11,7.43222]
[1727884545724,16.27,147.19,147.11,7.43222]
[1727884545924,16.27,147.19,147.14,3.3978]
[1727884546124,19.74039308,147.19,147.11,7.43222]
[1727884546432,16.27,147.19,147.11,7.43222]
[1727884546632,16.27,147.19,147.11,10.83737119]
[1727884546833,2.6153,147.21,147.13,16.27]
[1727884547131,16.39502,147.23,147.15,16.27]
[1727884547333,0.12502,147.23,147.16,16.27]
[1727884547525,0.12502,147.23,147.16,17.5823]
[1727884548035,0.12502,147.23,147.16,1.3123]
[1727884548234,3.3963,147.21,147.18,3.3968]
[1727884548433,0.12502,147.23,147.16,1.3123]
[1727884548635,16.27,147.22,147.12,16.27]
[1727884548828,3.3972,147.18,147.13,6.0]
[1727884549631,3.3972,147.18,147.15,3.3975]
[1727884549844,17.5304,147.22,147.13,22.27]
[1727884550041,0.12502,147.23,147.14,16.27]
[1727884550649,3.3964,147.21,147.18,3.3968]
[1727884550950,0.12502,147.23,147.14,16.27]
[1727884551246,3.3963,147.21,147.18,3.3968]
[1727884551553,0.12502,147.23,147.14,16.27]
[1727884551940,16.27,147.22,147.13,6.0]
[1727884552451,3.3973,147.17,147.14,3.3978]
[1727884552648,16.27,147.2,147.14,3.3978]
[1727884553044,3.3973,147.17,147.14,3.3978]
[1727884553546,16.27,147.18,147.13,3.398]
[1727884554346,16.27,147.18,147.12,6.0]
[1727884554551,16.27,147.18,147.14,3.3978]
[1727884554751,3.3974,147.17,147.14,3.3978]
[1727884555051,3.3974,147.17,147.12,6.0]
[1727884555648,3.3974,147.17,147.14,3.3978]
[1727884556848,22.27,147.2,147.12,6.0]
[1727884557056,3.3971,147.18,147.15,3.3977]
[1727884557955,3.3973,147.17,147.15,3.3977]
[1727884560061,3.3971,147.18,147.15,3.3977]
[1727884560447,3.3971,147.18,147.12,6.0]
[1727884560653,0.12502,147.23,147.13,16.27]
[1727884560858,0.12502,147.23,147.15,16.27]
[1727884561160,3.3963,147.21,147.16,6.0]
[1727884561655,3.3969,147.19,147.16,6.0]
[1727884561855,0.12502,147.23,147.13,6.0]
[1727884561856,16.27,147.2,147.13,6.0]
[1727884562046,16.27,147.18,147.11,1.43222]
[1727884562249,3.3976,147.16,147.13,3.3981]
[1727884562555,16.27,147.18,147.13,3.3981]
[1727884562758,16.27,147.18,147.12,3.3983]
[1727884562960,17.5417,147.18,147.12,3.3983]
[1727884563453,17.5417,147.18,147.11,7.43222]
[1727884563852,17.5417,147.18,147.13,3.398]
[1727884564052,17.5417,147.18,147.11,7.43222]
[1727884564754,3.3979,147.15,147.12,3.3982]
[1727884565258,3.3979,147.15,147.12,3.3983]
[1727884566657,3.3978,147.15,147.12,3.3982]
[1727884566855,16.27,147.16,147.11,0.12502]
[1727884567460,3.3978,147.15,147.12,3.3982]
[1727884567862,3.398,147.14,147.12,3.3982]
[1727884568161,16.27,147.16,147.11,0.12502]
[1727884568457,16.27,147.16,147.11,3.52352]
[1727884568458,3.3982,147.13,147.11,3.52352]
[1727884569369,3.3981,147.14,147.12,3.3984]
[1727884569853,16.27,147.16,147.11,0.12502]
[1727884570060,3.3977,147.15,147.13,3.398]
[1727884570257,1.2717,147.18,147.11,0.12502]
[1727884570456,22.27,147.21,147.11,16.39502]
[1727884570756,16.27,147.19,147.11,0.12502]
[1727884570956,3.3981,147.13,147.11,3.52352]
[1727884571153,16.27,147.17,147.11,0.12502]
[1727884571554,3.398,147.14,147.12,3.3982]
[1727884571757,3.398,147.14,147.11,0.12502]
[1727884572153,3.398,147.14,147.11,3.52342]
[1727884572348,3.398,147.14,147.11,0.12502]
[1727884572554,3.3982,147.13,147.11,0.12502]
[1727884572753,3.3982,147.13,147.11,3.52352]
[1727884573261,22.27,147.17,147.11,3.52352]
[1727884573554,22.27,147.17,147.11,0.12502]
[1727884573760,3.3979,147.15,147.11,0.12502]
[1727884574356,3.3981,147.14,147.11,0.12502]
[1727884574561,22.27,147.17,147.11,0.12502]
[1727884575060,3.398,147.14,147.12,3.3983]
[1727884575458,22.27,147.17,147.11,0.12502]
[1727884575660,24.9011,147.17,147.11,0.12502]
[1727884576864,3.3984,147.12,147.11,0.12502]
[1727884578159,3.3982,147.13,147.11,0.12502]
[1727884578463,16.27,147.15,147.11,0.12502]
[1727884579058,3.3984,147.12,147.11,0.12502]
[1727884580769,6.83405164,147.12,147.11,0.12502]
[1727884580960,3.3984,147.12,147.11,0.12502]
[1727884583067,25.6682,147.13,147.11,0.12502]
[1727884583467,22.27,147.13,147.11,0.12502]
[1727884583770,6.0,147.13,147.11,0.12502]
[1727884583968,6.0,147.15,147.11,0.12502]
[1727884584159,3.3983,147.13,147.11,0.12502]
[1727884585266,3.3984,147.12,147.11,0.12502]
[1727884588471,3.3991,147.09,147.07,3.3994]
[1727884588968,3.3994,147.08,147.05,0.12502]
[1727884589568,3.3996,147.07,147.05,0.12502]
[1727884590269,3.3998,147.06,147.05,0.12502]
[1727884594372,3.3996,147.07,147.05,0.12502]
[1727884594575,23.5445,147.09,147.05,0.12502]
[1727884594875,3.3997,147.07,147.05,0.12502]
[1727884596466,23.5445,147.09,147.05,0.12502]
[1727884596670,3.3998,147.06,147.05,0.12502]
[1727884598175,7.2745,147.09,147.05,0.12502]
[1727884598579,6.0,147.09,147.05,0.12502]
[1727884599173,9.3992,147.09,147.06,3.3997]
[1727884599475,17.6476,147.13,147.05,0.12502]
[1727884599668,3.3985,147.12,147.05,0.12502]
[1727884599873,3.3985,147.12,147.05,1.44752]
[1727884600075,7.3776,147.13,147.06,16.27]
[1727884600376,3.3983,147.13,147.1,3.3987]
[1727884601480,1.2749,147.14,147.06,22.27]
[1727884601481,4.6729,147.14,147.12,3.3983]
[1727884601681,0.12502,147.17,147.1,16.27]
[1727884601892,0.12502,147.17,147.1,22.27]
[1727884602077,0.12502,147.17,147.16,3.3974]
[1727884603475,0.12502,147.17,147.1,23.5589]
[1727884603680,0.12502,147.17,147.15,3.3975]
[1727884604074,0.12502,147.17,147.16,3.3974]
[1727884604779,0.12502,147.17,147.11,6.0]
[1727884605280,0.12502,147.17,147.15,3.3975]
[1727884605873,19.79242,147.17,147.13,3.398]
[1727884606875,19.79242,147.17,147.1,7.2889]
[1727884607781,16.39502,147.17,147.07,3.45714082]
[1727884607980,19.6678,147.15,147.08,6.0]
[1727884608184,19.6678,147.15,147.11,3.3985]
[1727884608379,16.27,147.15,147.11,3.3985]
[1727884608587,3.3979,147.14,147.11,3.3985]
[1727884609482,16.27,147.15,147.08,6.0]
[1727884609688,19.6678,147.15,147.08,6.0]
[1727884610384,19.6678,147.15,147.11,3.3985]
[1727884611089,3.3985,147.12,147.06,1.3]
[1727884611289,16.27,147.13,147.06,1.3]
[1727884611881,19.6683,147.13,147.1,3.3987]
[1727884613177,16.27,147.13,147.11,3.3984]
[1727884615090,1.341,147.14,147.13,3.3981]
[1727884615395,16.39502,147.17,147.09,16.27]
[1727884615587,19.79222,147.17,147.14,3.3978]
[1727884617290,3.3976,147.16,147.13,3.398]
[1727884617491,3.3976,147.16,147.1,6.0]
[1727884617791,3.3976,147.16,147.13,3.398]
[1727884617987,3.3976,147.16,147.1,6.0]
[1727884618196,16.39502,147.17,147.1,6.0]
[1727884618697,19.79232,147.17,147.14,3.3978]
[1727884619991,3.3976,147.16,147.13,3.398]
[1727884620588,3.3979,147.15,147.12,3.3982]
[1727884620783,16.39502,147.17,147.1,6.0]
[1727884621384,16.39502,147.17,147.13,3.398]
[1727884621893,16.39502,147.17,147.14,3.3979]
[1727884622088,0.12502,147.17,147.1,6.0]
[1727884622988,0.12502,147.17,147.11,16.27]
[1727884623188,0.12502,147.17,147.16,3.3974]
[1727884624494,0.12502,147.17,147.15,3.3975]
[1727884624688,0.12502,147.17,147.12,1.3183]
[1727884624884,0.12502,147.17,147.11,5.98]
[1727884624885,3.3975,147.16,147.11,5.98]
[1727884625193,3.3975,147.16,147.14,3.3979]
[1727884626480,3.3975,147.16,147.13,3.3979]
[1727884626685,3.3975,147.16,147.11,5.98]
[1727884626884,19.79232,147.17,147.11,5.98]
[1727884627291,0.12502,147.17,147.16,3.3974]
[1727884633498,0.12502,147.23,147.22,3.3961]
[1727884633700,0.12502,147.23,147.15,22.25]
[1727884633899,3.52082,147.23,147.15,22.25]
[1727884634196,0.12502,147.23,147.15,22.25]
[1727884634401,3.3961,147.22,147.15,22.25]
[1727884634696,3.3961,147.22,147.19,3.3966]
[1727884634899,3.3961,147.22,147.15,22.25]
[1727884635088,3.3965,147.21,147.15,5.98]
[1727884635291,3.3965,147.21,147.18,3.3968]
[1727884635690,3.3966,147.2,147.18,3.3968]
[1727884636400,3.3966,147.2,147.15,5.98]
[1727884636586,19.6669,147.19,147.12,1.366]
[1727884636784,16.27,147.19,147.12,1.366]
[1727884637288,3.3971,147.18,147.12,1.366]
[1727884637698,3.3971,147.18,147.15,3.3975]
[1727884637898,3.3973,147.17,147.15,3.3975]
[1727884638095,16.27,147.17,147.11,0.12502]
[1727884638292,3.398,147.14,147.12,3.3983]
[1727884638594,17.6162,147.16,147.11,0.12502]
[1727884640206,16.27,147.14,147.11,0.12502]
[1727884640393,22.25,147.14,147.11,0.12502]
[1727884641199,3.3981,147.13,147.11,0.12502]
[1727884642399,22.25,147.14,147.11,0.12502]
[1727884642790,22.25,147.14,147.12,3.3982]
[1727884643397,17.6162,147.16,147.15,3.3977]
[1727884643596,1.3462,147.16,147.15,3.3977]
[1727884643793,1.3462,147.16,147.11,0.12502]
[1727884644003,1.3462,147.16,147.14,3.3979]
[1727884644898,1.3462,147.16,147.11,0.12502]
[1727884645490,3.3978,147.15,147.12,3.3983]
[1727884645802,17.6162,147.16,147.11,0.12502]
[1727884646004,3.398,147.14,147.11,0.12502]
[1727884646198,17.6162,147.16,147.11,0.12502]
[1727884647302,3.3978,147.15,147.12,3.3983]
[1727884647902,1.3462,147.16,147.13,3.3981]
[1727884649204,3.3977,147.15,147.12,3.3983]
[1727884649504,3.3977,147.15,147.11,0.12502]
[1727884649505,16.27,147.15,147.11,0.12502]
[1727884649899,19.6678,147.15,147.11,3.52342]
[1727884650101,19.6678,147.15,147.11,0.12502]
[1727884650300,1.3462,147.16,147.11,0.12502]
[1727884650502,4.7438,147.16,147.12,3.3983]
[1727884650705,1.3462,147.16,147.11,0.12502]
[1727884651100,3.3978,147.15,147.12,3.3983]
[1727884651398,1.3462,147.16,147.11,0.12502]
[1727884651804,3.3979,147.14,147.11,3.52342]
[1727884652007,1.3462,147.16,147.11,3.52342]
[1727884652707,4.7438,147.16,147.13,3.3981]
[1727884653501,4.7438,147.16,147.15,3.3977]
[1727884653502,1.3462,147.16,147.15,3.3977]
[1727884654104,16.27,147.19,147.11,16.39502]
[1727884654308,17.5738,147.21,147.11,16.39502]
[1727884654498,1.3038,147.21,147.13,16.27]
[1727884655211,4.7002,147.21,147.18,3.3969]
[1727884655800,84.17560032,147.22,147.13,16.27]
[1727884656010,1.2615,147.25,147.17,16.27]
[1727884656307,2.7515,147.27,147.19,16.27]
[1727884656513,2.7515,147.27,147.22,3.3961]
[1727884656709,2.7515,147.27,147.18,16.27]
[1727884658410,3.3952,147.26,147.22,3.3961]
[1727884658608,2.7515,147.27,147.22,3.3961]
[1727884658811,2.7515,147.27,147.18,16.27]
[1727884659508,3.3952,147.26,147.22,3.3961]
[1727884660611,16.27,147.3,147.22,3.3961]
[1727884660801,18.8985,147.32,147.27,3.3948]
[1727884661000,2.6285,147.32,147.23,16.27]
[1727884661303,2.6285,147.32,147.28,3.3947]
[1727884661503,6.0224,147.32,147.28,3.3947]
[1727884661803,18.8985,147.32,147.28,3.3947]
[1727884662109,3.3942,147.3,147.27,3.3948]
[1727884662607,3.51962,147.29,147.26,3.3951]
[1727884663116,16.27,147.28,147.19,16.27]
[1727884664207,3.395,147.27,147.19,16.27]
[1727884665110,3.3952,147.26,147.19,16.27]
[1727884665417,16.27,147.28,147.24,3.3956]
[1727884665813,3.395,147.27,147.24,3.3956]
[1727884667113,0.12502,147.29,147.23,16.27]
[1727884668215,3.395,147.27,147.21,3.38348284]
[1727884668416,3.395,147.27,147.2,16.27]
[1727884668716,3.3951,147.27,147.2,16.27]
[1727884668913,0.12502,147.29,147.2,19.61273436]
[1727884669114,0.12502,147.29,147.25,3.3952]
[1727884669312,0.12502,147.29,147.19,1.3881]
[1727884669511,0.12502,147.29,147.2,16.27]
[1727884669816,0.12502,147.29,147.23,3.3957]
[1727884670012,3.3951,147.27,147.2,16.27]
[1727884670415,0.12502,147.29,147.23,3.3957]
[1727884671219,0.12502,147.29,147.2,16.27]
[1727884671711,3.3951,147.27,147.24,3.3955]
[1727884672112,0.12502,147.29,147.24,16.27]
[1727884672316,0.12502,147.29,147.28,3.3947]
[1727884672506,3.40780984,147.36,147.28,16.27]
[1727884672905,3.40780984,147.36,147.3,3.3942]
[1727884673322,3.40780984,147.36,147.28,16.27]
[1727884673525,20.2894,147.37,147.28,16.27]
[1727884674016,16.27,147.36,147.26,16.27]
[1727884675320,3.3937,147.33,147.26,16.27]
[1727884676422,3.3937,147.33,147.29,3.3942]
[1727884676618,3.3937,147.33,147.26,16.27]
[1727884677021,3.3937,147.33,147.3,3.3942]
[1727884677525,3.3943,147.3,147.25,2.7266]
[1727884677913,17.6567,147.34,147.25,2.7266]
[1727884678123,17.6567,147.34,147.26,16.27]
[1727884678124,1.3867,147.34,147.26,16.27]
[1727884678718,1.3244,147.37,147.28,16.27]
[1727884678916,19.72994568,147.39,147.3,16.27]
[1727884679116,16.27,147.39,147.3,16.27]
[1727884679314,3.3927,147.37,147.34,3.3933]
[1727884679622,16.27,147.39,147.34,3.3933]
[1727884679819,19.71874405,147.39,147.34,3.3933]
[1727884680218,3.3928,147.36,147.34,3.3933]
[1727884680422,3.3928,147.36,147.33,3.3935]
[1727884682130,3.51822,147.35,147.32,3.3937]
[1727884682430,3.51822,147.35,147.3,16.27]
[1727884682624,0.12502,147.35,147.3,16.27]
[1727884682830,0.12502,147.35,147.28,16.27]
[1727884683427,0.12502,147.35,147.3,16.27]
[1727884684026,3.51822,147.35,147.32,3.3937]
[1727884684226,0.12502,147.35,147.32,3.3937]
[1727884684532,0.12502,147.35,147.3,16.27]
[1727884685234,0.12502,147.35,147.34,3.3933]
[1727884685930,0.12502,147.35,147.33,3.3934]
[1727884686335,0.12502,147.35,147.3,16.27]
[1727884687126,0.12502,147.35,147.34,3.3933]
[1727884688126,3.32745044,147.42,147.38,3.3922]
[1727884688738,3.51692,147.41,147.35,16.27]
[1727884689333,3.51692,147.41,147.39,3.392]
[1727884689334,0.12502,147.41,147.39,3.392]
[1727884689937,3.51682,147.41,147.38,3.3923]
[1727884690137,3.51682,147.41,147.35,16.27]
[1727884690342,0.12502,147.41,147.39,3.392]
[1727884690541,0.12502,147.41,147.35,16.27]
[1727884691236,0.12502,147.41,147.39,3.3919]
[1727884691842,0.12502,147.41,147.4,3.3919]
[1727884692841,0.12502,147.41,147.39,3.392]
[1727884693136,3.3922,147.39,147.35,16.27]
[1727884693841,3.392,147.4,147.35,16.27]
[1727884694042,0.12502,147.41,147.35,16.27]
[1727884694441,3.3925,147.38,147.33,17.5638]
[1727884694638,0.12502,147.41,147.33,17.5638]
[1727884694944,3.3927,147.37,147.33,17.5638]
[1727884695142,0.12502,147.41,147.33,17.5638]
[1727884695334,0.12502,147.41,147.35,16.27]
[1727884696342,3.51682,147.41,147.38,3.3922]
[1727884697035,0.12502,147.41,147.35,16.27]
[1727884697233,3.3922,147.39,147.33,17.5638]
[1727884697437,0.12502,147.41,147.33,17.5638]
[1727884697643,16.39502,147.41,147.33,1.2938]
[1727884698035,16.39502,147.41,147.31,17.6365]
[1727884699034,16.39502,147.41,147.34,3.3931]
[1727884699035,3.3926,147.37,147.34,3.3931]
[1727884699648,3.3932,147.35,147.33,3.3935]
[1727884700150,16.39502,147.41,147.33,3.3935]
[1727884700337,3.3924,147.38,147.31,17.6365]
[1727884700740,16.39502,147.41,147.35,3.3929]
[1727884701141,16.39502,147.41,147.31,17.6365]
[1727884701436,3.3924,147.39,147.36,3.3927]
[1727884702543,16.39502,147.41,147.38,3.3923]
[1727884702544,3.392,147.4,147.38,3.3923]
[1727884702844,0.12502,147.41,147.35,16.27]
[1727884703643,0.12502,147.41,147.39,3.392]
[1727884703842,0.12502,147.41,147.35,16.27]
[1727884704440,0.12502,147.41,147.37,16.27]
[1727884705050,0.12502,147.41,147.4,3.3919]
[1727884709742,1.3155,147.48,147.4,3.3919]
[1727884709950,1.3155,147.48,147.41,16.27]
[1727884710346,3.3905,147.46,147.41,16.27]
[1727884710750,3.3905,147.46,147.44,3.3908]
[1727884711447,3.39,147.49,147.46,3.3905]
[1727884712850,3.3901,147.48,147.46,3.3905]
[1727884713247,3.3901,147.48,147.43,16.27]
[1727884713447,3.3901,147.48,147.45,3.3907]
[1727884714051,3.39,147.49,147.46,3.3905]
[1727884714352,1.40262,147.53,147.45,16.27]
[1727884714551,3.44309027,147.52,147.43,16.27]
[1727884714748,16.27,147.51,147.43,16.27]
[1727884715150,3.3905,147.46,147.43,19.6611]
[1727884715756,3.391,147.44,147.41,21.0059]
[1727884715945,16.27,147.5,147.41,17.6143]
[1727884716149,3.3906,147.46,147.43,3.3911]
[1727884716952,16.27,147.5,147.41,17.6143]
[1727884717854,3.3907,147.46,147.43,3.3911]
[1727884718249,3.3907,147.46,147.41,17.6143]
[1727884718749,3.3908,147.45,147.41,17.6143]
[1727884719357,3.3908,147.45,147.43,3.3912]
[1727884720255,1.40262,147.53,147.46,3.3905]
[1727884720256,17.67262,147.53,147.46,3.3905]
[1727884720956,20.98007543,147.53,147.46,3.3905]
[1727884721455,1.40262,147.53,147.46,3.3905]
[1727884721953,3.3895,147.51,147.46,3.3905]
[1727884722257,1.40262,147.53,147.46,3.3905]
[1727884722556,3.3895,147.51,147.46,3.3905]
[1727884723055,3.3898,147.5,147.46,3.3905]
[1727884723352,17.67262,147.53,147.46,3.3905]
[1727884723556,3.39,147.49,147.46,3.3905]
[1727884723956,17.67262,147.53,147.46,3.3905]
[1727884724653,3.3898,147.5,147.46,3.3905]
[1727884724854,17.67262,147.53,147.46,3.3905]
[1727884725154,3.39,147.49,147.46,3.3905]
[1727884725956,3.3899,147.49,147.46,3.3905]
[1727884726345,17.67262,147.53,147.46,3.3905]
[1727884726552,1.40262,147.53,147.46,3.3905]
[1727884727658,3.3897,147.5,147.46,3.3905]
[1727884730053,1.40262,147.53,147.43,16.27]
[1727884730054,3.51542,147.47,147.43,16.27]
[1727884730254,0.12502,147.47,147.41,17.6143]
[1727884730656,0.12502,147.47,147.42,3.3913]
[1727884730962,0.12502,147.47,147.41,17.6143]
[1727884731465,0.12502,147.47,147.35,96.807049]
[1727884731466,0.12502,147.47,147.39,16.27]
[1727884732665,0.12502,147.47,147.4,3.3918]
[1727884732666,3.3914,147.43,147.4,3.3918]
[1727884732853,3.35673585,147.46,147.38,1.2823]
[1727884733055,3.3917,147.41,147.38,3.3923]
[1727884733356,16.27,147.45,147.35,106.291149]
[1727884733758,3.3915,147.42,147.39,3.3921]
[1727884733958,3.3915,147.42,147.35,106.291149]
[1727884734858,3.42185592,147.44,147.35,106.291149]
[1727884735059,16.27,147.43,147.35,106.291149]
[1727884735469,16.27,147.45,147.35,106.291149]
[1727884735859,16.27,147.45,147.37,16.27]
[1727884736362,1.42522,147.47,147.39,16.27]
[1727884736765,3.47251567,147.46,147.39,16.27]
[1727884737070,3.3909,147.45,147.39,16.27]
[1727884737470,1.42522,147.47,147.39,16.27]
[1727884737868,1.42522,147.47,147.42,3.3913]
[1727884738468,3.3909,147.45,147.42,3.3913]
[1727884739771,1.42522,147.47,147.39,16.27]
[1727884740271,3.3909,147.45,147.42,3.3913]
[1727884740671,3.44379099,147.46,147.37,16.27]
[1727884740878,3.3914,147.43,147.4,3.3918]
[1727884741170,3.46719276,147.45,147.4,3.3918]
[1727884741371,3.3916,147.42,147.4,3.3918]
[1727884741568,19.5861541,147.45,147.39,3.392]
[1727884741774,19.5861541,147.45,147.35,106.291149]
[1727884742374,3.3918,147.41,147.38,3.3924]
[1727884743575,19.5861541,147.45,147.38,3.3924]
[1727884743765,3.392,147.4,147.37,3.3925]
[1727884744175,3.392,147.4,147.35,106.291149]
[1727884745071,16.27,147.44,147.35,106.291149]
[1727884745266,3.3922,147.39,147.35,106.291149]
[1727884745973,16.27,147.44,147.35,106.291149]
[1727884746271,16.27,147.44,147.39,3.3921]
[1727884747066,3.3916,147.42,147.39,3.3921]
[1727884747271,16.27,147.44,147.39,3.3921]
[1727884747564,3.3913,147.43,147.39,3.3921]
[1727884747773,16.27,147.44,147.39,3.3921]
[1727884747967,16.27,147.44,147.35,106.291149]
[1727884748168,3.392,147.4,147.38,3.3922]
[1727884749070,16.27,147.44,147.35,106.291149]
[1727884749281,16.27,147.44,147.39,3.392]
[1727884749674,10.42,147.43,147.39,3.392]
[1727884750068,10.42,147.43,147.38,13.8123]
[1727884750374,1.42522,147.47,147.35,0.12502]
[1727884750375,10.42,147.4,147.35,0.12502]
[1727884750575,10.42,147.4,147.35,10.54502]
[1727884751179,3.3925,147.38,147.36,3.3927]
[1727884751378,10.42,147.4,147.35,10.54502]
[1727884752277,1.42522,147.47,147.37,10.42]
[1727884752576,10.42,147.44,147.39,10.42]
[1727884752776,13.75345233,147.44,147.39,10.42]
[1727884753174,3.3918,147.41,147.39,13.812]
[1727884753570,3.3918,147.41,147.39,3.392]
[1727884753771,3.33345233,147.44,147.35,16.40502]
[1727884753772,3.3912,147.44,147.42,3.3914]
[1727884755082,3.3908,147.45,147.42,3.3914]
[1727884755382,17.70522,147.47,147.42,3.3914]
[1727884755579,3.391,147.45,147.42,3.3914]
[1727884756087,3.3908,147.45,147.38,16.28]
[1727884756578,3.3906,147.46,147.41,19.6716]
[1727884756880,1.42522,147.47,147.43,16.28]
[1727884756881,0.12502,147.47,147.43,16.28]
[1727884757872,0.12502,147.47,147.46,3.3905]
[1727884771099,0.12502,147.53,147.45,16.28]
[1727884771285,0.12502,147.53,147.48,16.28]
[1727884771687,3.3892,147.52,147.5,3.3895]
[1727884772083,0.12502,147.53,147.5,3.3895]
[1727884772283,3.51402,147.53,147.5,3.3895]
[1727884772692,0.12502,147.53,147.48,16.28]
[1727884773193,1.02040816,147.57,147.52,16.28]
[1727884773584,1.02040816,147.57,147.55,10.41]
[1727884773786,1.02040816,147.57,147.55,13.7983]
[1727884775596,1.02040816,147.57,147.55,10.41]
[1727884775791,4.40860816,147.57,147.54,13.7986]
[1727884775997,1.02040816,147.57,147.54,13.7986]
[1727884777287,3.3883,147.56,147.54,13.7986]
[1727884778000,3.3883,147.56,147.54,10.41]
[1727884778798,1.02040816,147.57,147.54,10.41]
[1727884778988,1.02040816,147.57,147.53,3.3888]
[1727884778989,10.41,147.56,147.52,3.389]
[1727884779892,10.41,147.56,147.51,10.41]
[1727884780094,10.41,147.55,147.5,10.41]
[1727884780596,1.02040816,147.57,147.49,10.41]
[1727884780597,10.41,147.54,147.49,10.41]
[1727884781000,3.3895,147.51,147.49,10.41]
[1727884781899,10.41,147.52,147.48,10.41]
[1727884782902,3.3898,147.5,147.48,10.41]
[1727884783602,1.3835,147.55,147.47,10.53502]
[1727884783807,10.41,147.53,147.48,10.41]
[1727884784197,3.3893,147.52,147.49,3.3897]
[1727884784397,10.41,147.53,147.48,10.41]
[1727884784800,10.41,147.53,147.48,13.8]
[1727884785098,10.41,147.52,147.48,3.39]
[1727884785295,3.3895,147.51,147.48,3.39]
[1727884785490,3.3895,147.51,147.48,13.8]
[1727884787698,3.3896,147.5,147.47,10.53502]